bitfinex/quotes_ETHUSD_20220215
["timestamp","ask_amount","ask_price","bid_price","bid_amount"]
[1644958858731,0.54102994,3113.7,3113.3,0.80303]
[1644958858732,3.23252369,3113.6,3113.3,0.80303]
[1644958858927,3.23252369,3113.6,3113.4,0.80328]
[1644958859526,3.20469075,3113.6,3113.4,0.80328]
[1644958859730,0.79102994,3113.7,3113.4,0.80328]
[1644958859731,1.96215305,3113.7,3113.4,0.80328]
[1644958859927,0.80318,3113.6,3113.4,0.80328]
[1644958860134,1.96215305,3113.7,3113.4,0.80328]
[1644958860330,0.79102994,3113.7,3113.4,0.84691153]
[1644958860980,0.79102994,3113.7,3113.4,2.45304503]
[1644958861384,0.79102994,3113.7,3113.4,3.45549143]
[1644958861385,0.54102994,3113.7,3113.4,3.45549143]
[1644958861586,0.54102994,3113.7,3113.5,2.4088254]
[1644958862581,0.54102994,3113.7,3113.5,2.58641656]
[1644958863584,0.54102994,3113.7,3113.6,0.970304]
[1644958863784,0.54102994,3113.7,3113.6,1.19565453]
[1644958863988,0.54102994,3113.7,3113.6,2.1759094]
[1644958864627,0.00266118,3114.1,3113.7,0.8029]
[1644958864828,0.00266118,3114.1,3113.8,1.773104]
[1644958865031,1.1451,3114.8,3113.8,1.773104]
[1644958865032,1.1745,3115.3,3114.0,0.80276]
[1644958865230,0.2542593,3115.0,3114.0,0.21726716]
[1644958865456,0.2542593,3115.0,3114.1,0.462]
[1644958865630,0.2542593,3115.0,3114.3,1.0556498]
[1644958865926,0.2542593,3115.0,3114.3,1.09928133]
[1644958866526,0.2542593,3115.0,3114.3,1.90190133]
[1644958866728,0.2542593,3115.0,3114.3,3.50718703]
[1644958866927,0.25,3115.0,3114.3,3.52255385]
[1644958867127,0.00092648,3114.8,3114.3,2.46690405]
[1644958867927,0.00092648,3114.8,3114.3,2.48230657]
[1644958868129,0.25,3115.0,3114.3,2.48230657]
[1644958868382,0.00092648,3114.7,3114.3,2.48230657]
[1644958868583,0.00092648,3114.7,3114.4,0.80265]
[1644958868786,0.00092648,3114.7,3114.4,4.0133125]
[1644958868983,0.00092648,3114.7,3114.5,1.60539]
[1644958869183,0.25,3115.0,3114.5,1.60539]
[1644958869584,0.00291044,3114.7,3114.5,1.60539]
[1644958869785,0.00291044,3114.7,3114.5,4.0134713]
[1644958870485,0.25,3115.0,3114.5,4.0134713]
[1644958870688,0.00291041,3114.8,3114.5,4.0134713]
[1644958871088,0.01163984,3115.2,3114.8,0.00132052]
[1644958871485,0.01163984,3115.2,3114.8,2.59620224]
[1644958871687,0.0042593,3115.7,3115.0,1.13249895]
[1644958872751,0.0042593,3115.7,3115.1,0.8025656]
[1644958872951,0.0042593,3115.7,3115.3,0.80257]
[1644958873548,1.37408027,3116.0,3115.3,0.80257]
[1644958873848,1.37408027,3116.0,3115.5,0.80253]
[1644958873849,0.6108925,3116.0,3115.5,0.80253]
[1644958874151,0.80256,3116.1,3115.6,1.60509]
[1644958874349,0.6108925,3116.2,3115.6,1.60509]
[1644958874747,0.6108925,3116.2,3115.6,4.0126833]
[1644958874949,0.6108925,3116.2,3115.7,0.80253]
[1644958875351,0.6108925,3116.2,3115.8,0.80245]
[1644958875556,0.00092455,3116.1,3115.8,0.80245]
[1644958876180,0.00092455,3116.1,3115.9,1.60496]
[1644958876380,0.00092455,3116.1,3115.9,3.20994]
[1644958876583,0.80248,3116.3,3116.0,1.60501]
[1644958876778,1.13414219,3116.1,3116.0,0.80251]
[1644958876977,1.13414219,3116.1,3115.9,3.20994]
[1644958877378,1.93669219,3116.1,3115.9,3.20994]
[1644958877977,0.80255,3116.1,3115.9,3.20994]
[1644958878378,0.0008628,3116.2,3115.9,3.20994]
[1644958878578,0.0008628,3116.2,3116.0,0.8025]
[1644958878981,0.80249,3116.3,3116.0,0.8025]
[1644958879182,0.80534735,3116.3,3116.0,0.8025]
[1644958879624,0.80534735,3116.3,3116.0,1.60499]
[1644958879828,0.80534735,3116.3,3116.1,0.80252]
[1644958880225,0.80249,3116.3,3116.1,0.80252]
[1644958881325,0.80249,3116.3,3116.1,1.6050153]
[1644958884983,0.36851576,3116.2,3116.1,1.6050153]
[1644958885988,0.502527,3116.4,3116.2,2.40689]
[1644958886182,6.64199898,3116.8,3116.2,2.40689]
[1644958886183,2.7609,3116.8,3116.2,2.40689]
[1644958886383,0.01010648,3116.8,3116.2,2.40689]
[1644958887029,0.01010648,3116.8,3116.3,4.08289486]
[1644958887229,0.01010648,3116.8,3116.4,0.80227]
[1644958887433,0.5,3116.9,3116.4,2.40687]
[1644958888635,0.5,3116.9,3116.6,0.80229]
[1644958888830,0.5,3116.9,3116.6,3.2091762]
[1644958888831,1.30231,3116.9,3116.6,3.2091762]
[1644958889030,1.306548,3116.9,3116.6,3.2091762]
[1644958890440,2.22551384,3116.9,3116.6,3.2091762]
[1644958891080,2.22551384,3116.9,3116.6,1.75103521]
[1644958891081,0.504238,3116.9,3116.6,1.75103521]
[1644958891285,0.50674362,3116.9,3116.6,1.75103521]
[1644958891481,0.00674362,3116.9,3116.7,0.8021802]
[1644958891681,0.00250562,3116.9,3116.7,1.6043802]
[1644958892081,0.004238,3117.2,3116.7,1.6043802]
[1644958892281,3.99913838,3117.2,3116.8,0.80224]
[1644958892481,0.00270149,3117.0,3116.8,0.80224]
[1644958892882,0.00693949,3117.0,3116.8,0.80224]
[1644958893086,0.00270149,3117.0,3116.8,0.80224]
[1644958893482,0.80238,3117.0,3116.8,1.60457]
[1644958893886,0.80238,3117.0,3116.8,2.4068949]
[1644958894549,0.78697749,3117.0,3116.8,2.4068949]
[1644958896152,1.608998,3117.1,3116.8,2.4068949]
[1644958896153,0.6151305,3117.1,3116.8,2.4068949]
[1644958896558,0.6151305,3117.1,3116.9,0.80224]
[1644958896752,0.004238,3117.1,3116.9,0.80224]
[1644958896953,0.6151305,3117.2,3116.9,0.80224]
[1644958897153,0.004238,3117.2,3117.0,0.80224]
[1644958897351,0.80224,3117.2,3117.0,1.6044747]
[1644958897553,1.4131325,3117.2,3117.0,1.6044747]
[1644958897752,1.4131325,3117.2,3117.0,2.4067147]
[1644958897952,0.80224,3117.2,3117.0,2.4067147]
[1644958898380,1.4131325,3117.2,3117.0,2.4067147]
[1644958898980,0.6108925,3117.1,3117.0,1.6044747]
[1644958899581,1.41584027,3117.2,3117.0,1.6044747]
[1644958899984,0.80494777,3117.2,3117.0,1.6044747]
[1644958900383,0.80494777,3117.2,3117.0,0.80224]
[1644958900384,0.6108925,3117.1,3117.0,0.80224]
[1644958900585,0.80224,3117.2,3117.0,0.20076115]
[1644958900782,0.80224,3117.2,3117.0,1.00313115]
[1644958900783,3.1853296,3117.1,3117.0,1.00313115]
[1644958900982,0.80224,3117.2,3117.0,0.20076115]
[1644958901386,0.60844091,3117.1,3117.0,0.20076115]
[1644958901687,1.41068091,3117.2,3117.0,0.20076115]
[1644958901887,3.15343533,3117.1,3117.0,0.20076115]
[1644958902933,3.96792889,3117.1,3117.0,0.20076115]
[1644958904134,3.96792889,3117.1,3117.0,0.20160898]
[1644958905037,3.96792889,3117.1,3117.0,0.20245681]
[1644958905240,3.15343533,3117.1,3117.0,0.20245681]
[1644958905434,1.67181621,3117.1,3117.0,0.20245681]
[1644958905639,0.81339671,3117.1,3117.0,0.20245681]
[1644958905885,0.32399138,3117.1,3117.0,0.20245681]
[1644958906082,0.32399138,3117.1,3117.0,0.20330464]
[1644958906483,1.13738809,3117.1,3117.0,0.20330464]
[1644958906888,4.27290841,3117.1,3117.0,0.20330464]
[1644958907089,4.27284042,3117.1,3117.0,0.20415247]
[1644958907284,1.1373201,3117.1,3117.0,0.20415247]
[1644958908182,1.1373201,3117.1,3117.0,0.2050003]
[1644958909083,0.32399138,3117.1,3117.0,0.2050003]
[1644958909387,1.1373201,3117.1,3117.0,0.20584813]
[1644958909835,3.48817773,3117.1,3117.0,0.20584813]
[1644958910333,4.30267403,3117.1,3117.0,0.20669596]
[1644958910633,3.48817773,3117.1,3117.0,0.20669596]
[1644958911234,2.45,3117.0,3116.9,0.35332224]
[1644958911437,5.9367356,3117.0,3116.9,0.35332224]
[1644958912040,3.58900221,3117.0,3116.9,0.35332224]
[1644958913281,3.58899643,3117.0,3116.9,0.35332224]
[1644958913482,7.8230111,3117.0,3116.8,0.22050607]
[1644958913689,23.79442543,3116.9,3116.2,0.00084783]
[1644958913886,23.8,3116.5,3116.2,0.00084783]
[1644958914083,0.47855019,3116.4,3116.3,0.01604654]
[1644958914280,1.77855019,3116.4,3116.3,0.01604654]
[1644958914586,1.77855019,3116.4,3116.3,4.654e-05]
[1644958914587,2.05179703,3116.4,3116.3,4.654e-05]
[1644958914781,0.80261,3116.3,3116.0,0.00084783]
[1644958915080,0.81546979,3116.1,3116.0,0.00084783]
[1644958915281,1.13946117,3116.1,3116.0,0.00084783]
[1644958915681,1.12405866,3116.1,3116.0,0.00084783]
[1644958915881,1.12661138,3116.1,3116.0,0.00084783]
[1644958916080,4.40071006,3116.1,3116.0,0.00084783]
[1644958916281,5.40071006,3116.1,3116.0,0.00084783]
[1644958916880,2.12661138,3116.1,3116.0,0.00084783]
[1644958917143,1.12661138,3116.1,3116.0,0.00084783]
[1644958917538,0.32399138,3116.1,3116.0,0.00084783]
[1644958918339,0.32399138,3116.1,3116.0,0.92334518]
[1644958919940,0.32399138,3116.1,3116.0,4.1306387]
[1644958920145,0.32399138,3116.1,3116.0,5.48599649]
[1644958920996,0.004238,3116.6,3116.1,0.80222]
[1644958921189,0.0029209,3116.5,3116.2,4.05554473]
[1644958921387,0.0029209,3116.5,3116.2,0.8022302]
[1644958921989,0.0029209,3116.5,3116.2,2.4067102]
[1644958922186,0.61215734,3116.5,3116.2,2.4067102]
[1644958922397,0.61215734,3116.5,3116.3,0.8023156]
[1644958922589,0.61507828,3116.5,3116.3,0.8023156]
[1644958923092,0.80525094,3116.5,3116.3,1.6046]
[1644958923493,0.80233,3116.5,3116.3,2.4069614]
[1644958924292,0.80233,3116.5,3116.3,1.6046]
[1644958924734,0.61259797,3116.4,3116.3,1.6046]
[1644958924941,0.80239,3116.4,3116.2,1.60448]
[1644958925135,0.61268355,3116.3,3116.2,1.60448]
[1644958925435,0.80239,3116.4,3116.2,2.4068691]
[1644958925436,0.61268355,3116.4,3116.2,2.4068691]
[1644958926838,0.61268355,3116.3,3116.2,2.4068691]
[1644958927840,0.61268355,3116.4,3116.2,2.4068691]
[1644958928042,1.41794452,3116.5,3116.3,0.80233]
[1644958928290,0.61268355,3116.4,3116.3,0.8023271]
[1644958931286,0.61268355,3116.4,3116.2,0.94876919]
[1644958932238,0.61559306,3116.5,3116.3,1.6045571]
[1644958932540,0.00290951,3116.5,3116.3,1.6045571]
[1644958932937,0.61268355,3116.6,3116.3,1.6045571]
[1644958933141,0.61268355,3116.6,3116.4,0.80225]
[1644958933437,0.615593,3116.6,3116.4,0.80225]
[1644958933637,0.61268355,3116.5,3116.4,0.80225]
[1644958933839,0.61268355,3116.5,3116.3,3.2089207]
[1644958934039,0.26268355,3116.5,3116.4,0.94354342]
[1644958934438,0.26268355,3116.5,3116.4,1.74580682]
[1644958935543,0.26268355,3116.5,3116.4,0.94354342]
[1644958936793,0.21905202,3116.5,3116.4,0.94354342]
[1644958937794,0.21905202,3116.5,3116.3,2.4067695]
[1644958938396,1.02137202,3116.5,3116.3,1.60445]
[1644958938596,0.21905202,3116.5,3116.3,1.60445]
[1644958939666,0.21905202,3116.5,3116.3,3.53841802]
[1644958940061,0.21905202,3116.5,3116.3,2.406744]
[1644958940263,0.21905202,3116.5,3116.3,1.60445]
[1644958941062,1.02137202,3116.5,3116.3,1.60445]
[1644958941263,0.00291251,3116.6,3116.3,1.60445]
[1644958941264,0.25855121,3116.4,3116.3,1.60445]
[1644958941464,0.004238,3116.8,3116.3,1.90596615]
[1644958941465,0.25855121,3116.5,3116.3,1.90596615]
[1644958941670,0.004238,3116.8,3116.4,1.10373615]
[1644958941863,0.81680002,3117.0,3116.4,1.10373615]
[1644958941864,0.25584757,3116.7,3116.4,1.10373615]
[1644958942062,0.25584757,3116.6,3116.4,1.10373615]
[1644958942262,0.25584757,3116.5,3116.4,1.90594885]
[1644958942461,0.25584757,3116.5,3116.4,1.10373615]
[1644958942663,0.25584757,3116.5,3116.4,0.80228]
[1644958942965,0.25584757,3116.5,3116.3,4.0110853]
[1644958942966,0.25876084,3116.6,3116.3,4.0110853]
[1644958943166,0.25584757,3116.5,3116.3,4.0110853]
[1644958943387,0.25584757,3116.4,3116.3,5.61297713]
[1644958943589,0.00291327,3116.6,3116.3,7.70931746]
[1644958943787,0.25584757,3116.8,3116.4,1.10620074]
[1644958944187,0.00291334,3116.5,3116.4,1.10620074]
[1644958944990,0.25584757,3116.8,3116.4,1.10620074]
[1644958945191,0.25584757,3116.8,3116.4,1.90849074]
[1644958945393,0.00291327,3116.6,3116.4,0.80229]
[1644958945695,0.00291327,3116.6,3116.4,1.60464]
[1644958946091,0.00291327,3116.6,3116.5,1.10606055]
[1644958946299,0.25584757,3116.8,3116.6,0.80223]
[1644958946492,0.00291324,3116.7,3116.6,0.80223]
[1644958946892,0.25876081,3116.7,3116.6,0.80223]
[1644958947542,0.25584757,3116.7,3116.6,0.80223]
[1644958948744,0.6127366,3116.7,3116.6,0.80223]
[1644958948945,0.25584757,3116.7,3116.6,0.80223]
[1644958949147,0.87144269,3116.8,3116.6,0.80223]
[1644958949348,0.87144269,3116.8,3116.7,1.15599183]
[1644958949543,0.25870609,3116.8,3116.7,1.15599183]
[1644958949943,0.25584757,3116.8,3116.6,1.6043899]
[1644958950794,1.05806757,3116.8,3116.6,0.80223]
[1644958950999,0.25584757,3116.7,3116.6,0.80223]
[1644958951194,0.25584757,3116.7,3116.5,1.03396863]
[1644958951402,0.61961821,3116.9,3116.6,0.3]
[1644958951593,0.22868095,3116.8,3116.6,0.3]
[1644958951799,1.03088095,3116.8,3116.7,0.8021465]
[1644958951995,1.03088095,3116.8,3116.6,1.90433]
[1644958952193,0.22868095,3116.7,3116.6,1.90433]
[1644958953397,0.6127366,3116.8,3116.6,1.90433]
[1644958953601,0.004238,3117.0,3116.6,1.90433]
[1644958953602,0.22868095,3116.7,3116.6,1.90433]
[1644958953797,0.00264364,3116.8,3116.6,6.38647687]
[1644958953996,0.00264364,3116.8,3116.6,1.90433]
[1644958954197,0.00264364,3116.8,3116.6,2.7065076]
[1644958954647,0.00264364,3116.8,3116.7,4.3441935]
[1644958954648,0.22863697,3116.8,3116.7,4.3441935]
[1644958954949,0.22863697,3116.8,3116.6,2.9236669]
[1644958955549,0.22863697,3116.8,3116.6,3.85983058]
[1644958955747,0.22863697,3116.8,3116.7,3.22347806]
[1644958955948,0.22863697,3116.8,3116.7,4.35519587]
[1644958956170,0.004238,3116.9,3116.7,1.13171781]
[1644958956171,0.00689612,3116.9,3116.7,1.13171781]
[1644958956451,0.00689612,3116.9,3116.7,3.71361871]
[1644958956452,0.00265812,3116.9,3116.7,3.71361871]
[1644958956647,0.00265812,3116.9,3116.7,4.3839509]
[1644958957148,0.004238,3117.2,3116.7,3.3660393]
[1644958957347,0.00265806,3117.0,3116.9,0.8020217]
[1644958958395,0.004238,3117.2,3116.9,0.8020217]
[1644958958396,0.004238,3117.2,3117.0,0.80206]
[1644958958596,0.004238,3117.2,3116.9,1.6040717]
[1644958958597,0.002657,3117.1,3116.9,1.6041146]
[1644958959201,0.002657,3117.1,3116.9,1.5541146]
[1644958959604,0.004238,3117.2,3117.0,1.6040827]
[1644958959798,0.00265697,3117.2,3117.0,1.6040827]
[1644958960598,0.00265697,3117.2,3117.0,2.4061127]
[1644958960811,0.6169746,3117.3,3117.1,1.6040563]
[1644958961001,0.6127366,3117.2,3117.1,1.6040563]
[1644958961200,0.6127366,3117.2,3117.1,0.8020263]
[1644958961504,0.00689492,3117.3,3117.1,0.8020263]
[1644958961699,0.61270321,3117.2,3117.1,0.8020263]
[1644958962139,0.004238,3117.3,3117.1,0.8020263]
[1644958962340,0.004238,3117.3,3117.1,1.6040963]
[1644958962541,0.61257812,3117.2,3117.1,1.6040963]
[1644958962739,0.61257812,3117.2,3117.1,0.8020263]
[1644958963140,0.61257812,3117.2,3117.1,1.9020115]
[1644958963741,0.61257812,3117.2,3117.1,0.8020263]
[1644958966889,0.61258478,3117.2,3117.1,0.8020263]
[1644958967891,0.61258478,3117.2,3117.0,1.5084]
[1644958968092,0.81680002,3117.2,3116.8,1.60411]
[1644958968290,0.82103802,3117.1,3116.4,1.60458]
[1644958968490,0.61265708,3116.8,3116.4,1.60458]
[1644958968696,0.61265708,3116.7,3116.0,0.00084783]
[1644958968892,1.41511688,3116.5,3116.0,0.00084783]
[1644958969092,0.80246,3116.4,3116.0,0.00084783]
[1644958969649,0.80246,3116.4,3116.1,0.80248]
[1644958970042,1.41511708,3116.4,3116.1,0.80248]
[1644958970643,1.41511708,3116.4,3116.2,0.80243]
[1644958970945,1.41511708,3116.4,3116.2,1.60481]
[1644958971241,1.41511708,3116.4,3116.2,0.14677607]
[1644958971442,1.41511708,3116.4,3116.0,0.00084783]
[1644958971443,2.60329114,3116.4,3116.0,0.00084783]
[1644958971643,1.41520708,3116.2,3116.0,0.00084783]
[1644958972444,0.61265708,3116.1,3116.0,0.00084783]
[1644958973993,1.41520708,3116.2,3116.0,0.00084783]
[1644958974200,1.41520708,3116.2,3116.0,0.80326783]
[1644958974395,0.61265708,3116.4,3116.0,0.80326783]
[1644958974598,0.00266105,3116.5,3116.0,0.80326783]
[1644958975195,0.25,3116.6,3116.1,1.17876002]
[1644958975393,0.00266111,3116.5,3116.2,0.80223]
[1644958975594,0.00266111,3116.5,3116.2,2.40669]
[1644958976195,0.00266111,3116.5,3116.3,1.17416054]
[1644958976395,1.60240146,3116.8,3116.3,3.58080944]
[1644958976595,0.00265718,3116.5,3116.4,2.77858054]
[1644958977445,0.61265708,3116.8,3116.4,2.77858054]
[1644958977646,0.80018146,3116.7,3116.4,2.40667]
[1644958977847,0.18843382,3116.6,3116.4,2.40667]
[1644958978647,0.18752438,3116.6,3116.4,2.40667]
[1644958978850,0.80018146,3116.6,3116.4,2.40667]
[1644958980650,0.18752438,3116.5,3116.4,2.40667]
[1644958980892,0.98979438,3116.6,3116.4,2.77873615]
[1644958981094,0.18752438,3116.5,3116.4,1.60442]
[1644958981693,0.18752438,3116.5,3116.4,2.77874021]
[1644958982095,0.18752438,3116.5,3116.4,4.42011852]
[1644958982299,0.18753202,3116.5,3116.4,1.97646021]
[1644958982696,0.00289821,3116.6,3116.4,1.17432021]
[1644958982895,0.00289821,3116.6,3116.4,1.97645241]
[1644958983096,0.00289821,3116.6,3116.5,1.17432021]
[1644958983297,0.00289821,3116.6,3116.5,3.90513332]
[1644958983499,0.18753202,3116.7,3116.5,2.30118332]
[1644958983697,0.00090943,3116.8,3116.6,1.17432021]
[1644958983899,0.00090943,3116.8,3116.6,2.27640451]
[1644958984101,0.00090943,3116.8,3116.7,1.17432021]
[1644958984563,0.18493123,3116.8,3116.7,1.17432021]
[1644958984754,0.79667888,3117.1,3116.7,1.17432021]
[1644958984954,0.00290939,3116.9,3116.7,1.97645021]
[1644958985158,0.00290939,3116.9,3116.7,0.80213]
[1644958985354,0.00290939,3116.9,3116.8,1.17764195]
[1644958985955,0.79667888,3117.1,3116.8,1.60426]
[1644958985956,0.1840218,3117.0,3116.8,1.60426]
[1644958986156,0.00290932,3117.0,3116.8,1.60426]
[1644958987054,1.41482708,3117.0,3116.8,1.60426]
[1644958987257,0.1840218,3116.9,3116.8,1.60426]
[1644958987456,0.79667888,3116.9,3116.8,1.60426]
[1644958987662,0.1840218,3116.9,3116.8,1.60426]
[1644958987863,0.1840218,3116.9,3116.8,2.78153212]
[1644958988697,0.00290932,3117.0,3116.8,2.78153212]
[1644958988899,0.00290932,3117.0,3116.8,1.60426]
[1644958989300,0.18693112,3117.0,3116.8,1.60426]
[1644958989500,0.1840218,3116.9,3116.8,1.60426]
[1644958989701,0.1840218,3116.9,3116.8,2.78104901]
[1644958990001,0.61556637,3117.1,3116.8,3.58314901]
[1644958990206,0.79958817,3117.1,3116.8,1.60426]
[1644958990401,0.79667888,3117.0,3116.8,1.60426]
[1644958990604,1.41486708,3117.0,3116.8,1.60426]
[1644958990800,0.1840218,3116.9,3116.8,1.60426]
[1644958991403,0.1840218,3116.9,3116.8,0.43805524]
[1644958991604,0.1840218,3116.9,3116.8,1.63659654]
[1644958992041,0.7297514,3117.0,3116.8,1.63659654]
[1644958992244,0.73266072,3117.0,3116.8,0.43805524]
[1644958992850,1.3453178,3117.0,3116.5,1.60433]
[1644958993046,0.61265708,3116.9,3116.6,0.80226]
[1644958993246,0.80225,3116.8,3116.6,0.80226]
[1644958996900,0.80225,3116.8,3116.6,1.10226]
[1644958997299,0.80225,3116.8,3116.5,1.60433]
[1644958998302,0.80515718,3116.8,3116.5,1.60433]
[1644958999102,0.80225,3116.8,3116.5,1.60433]
[1644958999304,0.80515718,3116.8,3116.5,1.60433]
[1644958999746,0.80515718,3116.8,3116.6,0.80226]
[1644959000250,0.80225,3116.8,3116.6,0.80226]
[1644959000849,3.17941478,3116.7,3116.6,0.80226]
[1644959001053,3.17941478,3116.7,3116.0,0.00084783]
[1644959001054,0.8024,3116.6,3116.0,0.00084783]
[1644959001257,3.54992827,3116.5,3116.0,0.00084783]
[1644959001451,0.8257,3116.5,3116.0,0.00084783]
[1644959001651,1.43869759,3116.5,3116.0,0.00084783]
[1644959001850,2.24105909,3116.5,3116.0,0.00084783]
[1644959002050,0.80241,3116.4,3116.0,0.80328783]
[1644959003694,0.80241,3116.4,3116.1,0.80239]
[1644959003897,0.80239,3116.3,3116.1,0.80239]
[1644959008447,0.61299759,3116.7,3116.2,0.80227]
[1644959008750,0.61299759,3116.8,3116.3,0.80226]
[1644959009146,0.61566097,3116.8,3116.3,0.80226]
[1644959009347,2.22017097,3116.8,3116.3,0.80226]
[1644959009546,0.61299759,3116.7,3116.3,0.80226]
[1644959010152,0.61299759,3116.7,3116.4,0.80228]
[1644959010552,0.80223,3116.6,3116.4,0.80228]
[1644959010794,1.41522759,3116.6,3116.4,0.80228]
[1644959011699,1.41522759,3116.6,3116.4,0.01165139]
[1644959011996,0.15302634,3116.5,3116.4,0.01165139]
[1644959012397,1.75769634,3116.5,3116.3,2.81382891]
[1644959012600,1.60467,3116.5,3116.4,1.20916891]
[1644959012798,1.60467,3116.5,3116.0,0.00084783]
[1644959012799,2.37074144,3116.5,3116.0,0.00084783]
[1644959013000,0.15307385,3116.4,3116.0,2.01249944]
[1644959013196,0.15307385,3116.4,3116.1,1.50926161]
[1644959013197,0.80246,3116.3,3116.1,1.50926161]
[1644959013399,0.15307385,3116.2,3116.1,0.3]
[1644959013696,0.15307385,3116.2,3116.1,1.50925618]
[1644959014758,0.95552385,3116.2,3116.1,1.20925618]
[1644959017952,0.95552385,3116.2,3116.0,0.80329783]
[1644959018151,0.15307385,3116.1,3116.0,0.00084783]
[1644959018398,0.95560385,3116.1,3116.0,0.00084783]
[1644959019005,1.56860144,3116.1,3116.0,0.00084783]
[1644959020199,0.95560385,3116.1,3116.0,0.00084783]
[1644959020800,1.56860144,3116.1,3116.0,0.00084783]
[1644959021399,2.56860144,3116.1,3116.0,0.00084783]
[1644959022247,1.95560385,3116.1,3116.0,0.00084783]
[1644959023150,0.95560385,3116.1,3116.0,0.00084783]
[1644959023349,1.95560385,3116.1,3116.0,0.00084783]
[1644959023750,0.95560385,3116.1,3116.0,0.00084783]
[1644959023950,1.95560385,3116.1,3116.0,0.00084783]
[1644959024155,0.95560385,3116.1,3116.0,0.00084783]
[1644959031148,1.75811705,3116.1,3115.9,0.2990105]
[1644959031451,0.15307385,3116.0,3115.6,0.80254]
[1644959031648,0.80252,3115.9,3115.6,0.80254]
[1644959031849,0.15307385,3115.8,3115.7,1.2076971]
[1644959032059,0.15307385,3115.8,3115.6,0.80254]
[1644959032249,0.15307385,3115.8,3115.7,1.20760666]
[1644959032449,0.15307385,3115.8,3115.6,0.80254]
[1644959032649,0.95560555,3115.8,3115.6,0.80073162]
[1644959032849,1.6050517,3115.8,3115.7,1.20740149]
[1644959033051,1.75793751,3115.8,3115.7,1.20740149]
[1644959033905,0.95540581,3115.8,3115.7,1.20740149]
[1644959034907,0.95540581,3115.8,3115.6,0.80073162]
[1644959035109,0.15288581,3115.7,3115.6,0.80073162]
[1644959035307,0.95536581,3115.7,3115.6,1.20782225]
[1644959035707,0.80248,3115.7,3115.6,1.20782225]
[1644959035908,0.95548033,3115.7,3115.6,1.20782225]
[1644959036206,0.80248,3115.7,3115.6,1.20782225]
[1644959036407,0.9555366,3115.7,3115.6,1.20782225]
[1644959036609,0.95554777,3115.7,3115.6,1.20782225]
[1644959037445,0.80248,3115.7,3115.6,1.20782225]
[1644959037645,0.95553615,3115.7,3115.6,1.20782225]
[1644959037845,0.95553774,3115.7,3115.6,1.20782225]
[1644959038145,0.80248,3115.7,3115.6,1.20782225]
[1644959038446,0.95557331,3115.7,3115.6,1.20782225]
[1644959039446,0.80248,3115.7,3115.6,1.20782225]
[1644959039850,0.95559535,3115.7,3115.6,1.20782225]
[1644959040155,0.95562486,3115.7,3115.5,0.00442776]
[1644959040349,0.80248,3115.7,3115.6,1.20857705]
[1644959040553,1.75822533,3115.7,3115.6,1.20857705]
[1644959040802,0.80257,3115.6,3115.0,1.24622776]
[1644959041011,0.80257,3115.6,3115.1,1.21303428]
[1644959041205,1.605068,3115.7,3115.2,2.81813428]
[1644959041405,1.605068,3115.7,3115.3,0.00442776]
[1644959041604,0.15316059,3115.6,3115.4,0.80257]
[1644959041805,0.95572059,3115.6,3115.5,1.21303428]
[1644959042004,1.0,3116.0,3115.5,4.37557353]
[1644959042205,0.15311156,3115.9,3115.6,1.20838408]
[1644959042410,0.15311156,3115.8,3115.6,1.21279205]
[1644959042606,0.61299759,3116.3,3115.7,1.20838408]
[1644959043005,2.37118232,3116.3,3115.7,1.20838408]
[1644959043207,0.15317983,3116.2,3115.7,1.20838408]
[1644959043407,0.80244,3115.8,3115.7,1.20838408]
[1644959043608,0.95561983,3115.8,3115.7,1.20838408]
[1644959044208,0.95561983,3115.8,3115.7,0.00440797]
[1644959044409,0.95561983,3115.8,3115.7,1.21378525]
[1644959044649,0.80244,3115.8,3115.7,0.00440797]
[1644959044853,0.9556032,3115.8,3115.7,1.21377591]
[1644959045251,0.9556032,3115.8,3115.7,0.00440797]
[1644959045451,0.9556032,3115.8,3115.7,1.21378835]
[1644959045751,0.9556032,3115.8,3115.7,1.21457993]
[1644959046751,0.9556032,3115.8,3115.7,0.00440797]
[1644959046953,0.9556032,3115.8,3115.7,1.21459217]
[1644959047173,0.9556032,3115.8,3115.7,1.21459234]
[1644959047353,0.9556032,3115.8,3115.7,0.00440797]
[1644959047562,0.9556032,3115.8,3115.7,1.20963321]
[1644959047754,0.9556032,3115.8,3115.7,0.00440797]
[1644959047955,0.9556032,3115.8,3115.7,1.20960295]
[1644959048154,0.9556032,3115.8,3115.7,1.21400644]
[1644959048405,0.9556032,3115.8,3115.7,1.21356251]
[1644959048604,0.9556032,3115.8,3115.7,0.00440797]
[1644959048807,0.9556032,3115.8,3115.7,1.2090297]
[1644959049005,0.9556032,3115.8,3115.7,0.00440797]
[1644959049206,0.9556032,3115.8,3115.7,1.20895938]
[1644959049406,0.9556032,3115.8,3115.7,0.00440797]
[1644959049606,0.9556032,3115.8,3115.6,1.20893778]
[1644959049805,0.1531632,3115.7,3115.6,0.00440797]
[1644959050109,0.9557432,3115.7,3115.6,0.00440797]
[1644959050304,0.9557432,3115.7,3115.6,1.21321374]
[1644959050505,0.9557432,3115.7,3115.6,0.00440797]
[1644959050905,1.7583203,3115.7,3115.6,0.00440797]
[1644959051104,1.7583203,3115.7,3115.4,0.00440797]
[1644959051304,1.7583203,3115.7,3115.5,1.20892326]
[1644959051305,0.1531632,3115.6,3115.5,1.20892326]
[1644959052855,0.9557632,3115.6,3115.5,1.20892326]
[1644959053251,1.56876079,3115.6,3115.4,0.00440797]
[1644959053448,0.15348572,3115.5,3115.0,1.60957797]
[1644959053649,0.15348572,3115.5,3115.1,1.21348863]
[1644959053848,0.15348572,3115.4,3115.2,1.21348863]
[1644959054050,1.6051556,3115.7,3115.3,1.21348863]
[1644959054249,0.90135869,3115.6,3115.4,2.01164066]
[1644959054450,0.74786238,3115.6,3115.5,0.00440797]
[1644959054651,0.90135003,3115.6,3115.5,1.21336147]
[1644959054851,0.90135003,3115.6,3115.5,0.00440797]
[1644959055655,0.90135003,3115.6,3115.5,1.21417684]
[1644959055908,0.90135003,3115.6,3115.5,1.21418151]
[1644959056906,0.15348765,3115.6,3115.5,1.21418151]
[1644959057307,0.61299759,3116.0,3115.5,1.21418151]
[1644959057506,0.61299759,3116.0,3115.6,1.20977354]
[1644959057707,0.61299759,3116.0,3115.6,1.21418151]
[1644959057905,0.61299759,3116.0,3115.7,0.00440797]
[1644959058112,0.61299759,3116.0,3115.8,1.21016855]
[1644959058308,0.61299759,3116.0,3115.8,0.00440797]
[1644959058507,0.76648524,3116.0,3115.9,1.2100505]
[1644959058711,0.76648524,3116.0,3115.7,1.21057187]
[1644959058907,0.76648524,3116.0,3115.7,0.00440797]
[1644959059107,0.76648524,3116.0,3115.8,1.21055889]
[1644959059310,0.76648524,3116.0,3115.8,0.00440797]